bitfinex-derivatives/quotes_SOLF0:USTF0_20250808
["timestamp","ask_amount","ask_price","bid_price","bid_amount"]
[1754678069125,2.59,178.84,178.78,3.02]
[1754678069315,2.59,178.84,178.77,0.03883352]
[1754678069523,6.41752673,178.85,178.77,3.05883352]
[1754678069825,11.1791,178.88,178.77,3.05883352]
[1754678069826,6.41752673,178.83,178.77,3.05883352]
[1754678070026,2.59,178.82,178.77,0.03883352]
[1754678070232,2.59,178.82,178.75,3.02]
[1754678070529,2.59,178.82,178.78,0.03599601]
[1754678070922,8.1823,178.79,178.78,9.601e-05]
[1754678071430,2.59,178.85,178.78,9.601e-05]
[1754678071731,2.59,178.85,178.79,3.02]
[1754678071926,5.5922,178.8,178.79,3.02]
[1754678073429,5.5923,178.79,178.78,9.601e-05]
[1754678073931,12.00982673,178.79,178.78,9.601e-05]
[1754678074134,17.60982673,178.79,178.78,9.601e-05]
[1754678074337,5.5923,178.79,178.78,9.601e-05]
[1754678076133,8.1823,178.79,178.78,9.601e-05]
[1754678076340,0.03769128,178.8,178.79,3.17]
[1754678076532,2.59,178.89,178.79,3.17]
[1754678076732,2.59,178.89,178.82,3.17]
[1754678076929,6.41752673,178.85,178.78,9.601e-05]
[1754678077231,9.34121981,178.9,178.59,386.8366]
[1754678077232,6.41752673,178.79,178.72,11.35]
[1754678077426,2.59,178.78,178.72,11.35]
[1754678077636,2.59,178.78,178.73,3.17]
[1754678077835,6.41752673,178.79,178.74,0.04077631]
[1754678078036,6.41752673,178.76,178.74,7.631e-05]
[1754678078240,2.59,178.75,178.72,7.631e-05]
[1754678078432,14.60162673,178.73,178.72,7.631e-05]
[1754678078829,5.5941,178.73,178.72,7.631e-05]
[1754678079940,8.1841,178.73,178.72,7.631e-05]
[1754678080241,14.60162673,178.73,178.72,7.631e-05]
[1754678080841,5.5941,178.73,178.72,7.631e-05]
[1754678081038,5.5941,178.73,178.72,3.17007631]
[1754678082541,5.5941,178.73,178.72,7.631e-05]
[1754678084545,5.6,178.73,178.63,3.17]
[1754678084744,6.41752673,178.69,178.63,3.17]
[1754678084943,2.59,178.67,178.64,3.17]
[1754678085140,2.59,178.67,178.65,3.17]
[1754678085336,0.03905413,178.68,178.61,3.17]
[1754678085540,0.03905413,178.68,178.6,131.49052961]
[1754678085541,0.03905413,178.68,178.63,3.17]
[1754678086040,5.63485413,178.68,178.63,3.17]
[1754678086242,0.03905413,178.68,178.63,3.17]
[1754678086541,5.63485413,178.68,178.64,3.17]
[1754678086739,0.03905413,178.68,178.64,3.17]
[1754678087847,5.63485413,178.68,178.64,3.17]
[1754678088149,2.62905413,178.68,178.61,3.17]
[1754678089042,5.5964,178.66,178.61,8.7679]
[1754678089342,5.5964,178.66,178.62,3.17]
[1754678090048,2.62905413,178.68,178.62,3.17]
[1754678090943,2.59,178.66,178.6,128.24300288]
[1754678091147,6.41752673,178.67,178.6,125.07300288]
[1754678091351,5.5962,178.67,178.62,3.17]
[1754678091649,0.03905413,178.68,178.63,3.17]
[1754678092947,0.03905413,178.68,178.64,6.41752673]
[1754678093249,0.03905413,178.68,178.67,3.17]
[1754678093439,5.5939,178.74,178.69,5.5953]
[1754678093642,11.93121981,178.76,178.69,12.01282673]
[1754678093846,2.62,178.75,178.72,3.17]
[1754678094055,2.62,178.73,178.69,3.17]
[1754678094347,2.62,178.72,178.7,3.17]
[1754678094549,5.5944,178.73,178.68,12.01292673]
[1754678094749,11.96121981,178.75,178.69,3.20851359]
[1754678094946,9.34121981,178.75,178.69,3.20851359]
[1754678095151,5.5942,178.73,178.69,8.80361359]
[1754678095347,5.5942,178.73,178.7,3.17]
[1754678095547,11.96121981,178.75,178.69,0.03851359]
[1754678095744,2.62,178.74,178.69,0.03851359]
[1754678096049,9.34121981,178.76,178.71,3.17]
[1754678096251,9.34121981,178.76,178.74,3.17]
[1754678096450,14.93441981,178.76,178.75,3.17]
[1754678096749,9.34121981,178.76,178.75,3.17]
[1754678097941,9.34121981,178.77,178.75,3.17]
[1754678098144,5.5932,178.76,178.75,3.17]
[1754678098342,9.34121981,178.77,178.75,3.17]
[1754678098550,9.34121981,178.78,178.76,3.17]
[1754678098748,9.34121981,178.78,178.74,0.04221097]
[1754678098954,9.34121981,178.77,178.74,0.04221097]
[1754678099157,9.34121981,178.77,178.76,3.17]
[1754678099355,14.93441981,178.77,178.76,3.17]
[1754678100051,5.5935,178.75,178.74,0.04221097]
[1754678100249,14.93471981,178.75,178.72,3.17]
[1754678100555,9.34121981,178.75,178.7,3.17]
[1754678100858,9.34121981,178.74,178.7,3.17]
[1754678101248,9.34121981,178.75,178.69,6.41752673]
[1754678101460,9.34121981,178.72,178.7,3.17]
[1754678101653,9.34121981,178.72,178.71,3.17]
[1754678102054,9.34121981,178.73,178.69,6.41752673]
[1754678102249,14.93521981,178.74,178.69,6.41752673]
[1754678102453,9.34121981,178.72,178.68,6.41752673]
[1754678102652,9.34121981,178.72,178.69,3.17]
[1754678102952,9.34121981,178.72,178.7,3.17]
[1754678103153,9.37968204,178.72,178.71,3.17]
[1754678103352,9.37968204,178.72,178.63,3.17]
[1754678103353,2.62,178.71,178.63,3.17]
[1754678103552,2.62,178.71,178.62,235.0]
[1754678103553,9.38414045,178.69,178.64,3.17]
[1754678103753,9.38414045,178.68,178.64,3.17]
[1754678104061,9.38414045,178.68,178.63,5.597]
[1754678104062,9.38414045,178.68,178.63,3.17]
[1754678104248,12.0434253,178.68,178.63,3.17]
[1754678104452,5.5969,178.64,178.63,3.17]
[1754678104856,12.00414045,178.66,178.6,3.17]
[1754678105056,2.62,178.64,178.61,3.17]
[1754678105258,2.62,178.64,178.62,3.17]
[1754678105459,5.5975,178.63,178.62,3.17]
[1754678107453,0.03873747,178.64,178.48,387.2037]
[1754678107656,0.03873747,178.64,178.54,6.41752673]
[1754678107657,2.63,178.63,178.54,6.41752673]
[1754678107861,12.01414045,178.63,178.54,6.41752673]
[1754678108059,5.5988,178.58,178.56,3.21]
[1754678108253,0.03622286,178.6,178.57,3.21]
[1754678108449,0.03622286,178.6,178.58,3.21]
[1754678108852,2.63,178.59,178.56,3.21]
[1754678109053,2.63,178.58,178.54,3.21]
[1754678109260,5.5994,178.57,178.55,3.21]
[1754678109561,2.63,178.58,178.55,3.21]
[1754678109761,5.5991,178.57,178.55,3.21]
[1754678109954,2.63,178.58,178.55,3.21]
[1754678110156,2.63,178.58,178.51,3.21]
[1754678110454,9.38414045,178.6,178.52,3.21]
[1754678110652,9.38414045,178.6,178.55,6.41752673]
[1754678110853,9.38414045,178.61,178.56,3.21]
[1754678111053,0.04062049,178.59,178.56,3.21]
[1754678112063,0.04062049,178.59,178.58,3.21]
[1754678113959,5.5975,178.63,178.58,3.21]
[1754678114255,9.38414045,178.63,178.58,3.21]
[1754678114456,5.5985,178.6,178.58,3.21]
[1754678114664,2.63,178.62,178.59,3.21]
[1754678114963,5.5984,178.6,178.59,3.21]
[1754678115161,9.38414045,178.63,178.57,6.45530069]
[1754678115359,9.38414045,178.65,178.62,3.21]
[1754678115658,9.38414045,178.66,178.62,3.21]
[1754678115864,14.98074045,178.66,178.62,8.8073]
[1754678116060,9.38414045,178.67,178.63,6.41752673]
[1754678116361,9.38414045,178.68,178.66,3.21]
[1754678116562,14.97984045,178.68,178.67,3.21]
[1754678116762,9.38414045,178.68,178.67,3.21]
[1754678116957,9.38414045,178.69,178.66,0.03599148]
[1754678117152,2.63,178.68,178.66,0.03599148]
[1754678117357,2.63,178.68,178.66,3.21]
[1754678117562,12.01414045,178.68,178.66,3.21]
[1754678118464,5.596,178.67,178.66,3.21]
[1754678119264,14.97984045,178.68,178.66,3.21]
[1754678119566,9.38414045,178.69,178.66,3.21]
[1754678119758,9.38414045,178.68,178.67,3.21]
[1754678119964,2.63,178.66,178.65,0.03960344]
[1754678120369,11.9959444,178.66,178.61,5.5979]
[1754678120560,9.3659444,178.65,178.6,151.75752673]
[1754678120764,9.3659444,178.66,178.64,3.24587647]
[1754678120962,9.3659444,178.67,178.66,3.21]
[1754678121359,14.9619444,178.67,178.66,3.21]
[1754678121663,2.63,178.67,178.65,3.21]
[1754678121863,9.37078472,178.66,178.65,3.21]
[1754678122063,14.96708472,178.66,178.65,3.21]
[1754678122264,2.63,178.66,178.64,0.03587647]
[1754678122458,9.37195571,178.65,178.64,0.03587647]
[1754678122659,12.00195571,178.65,178.64,0.03587647]
[1754678122866,14.96855571,178.65,178.64,3.24587647]
[1754678124160,17.59855571,178.65,178.64,0.03587647]
[1754678125873,8.2266,178.65,178.64,0.03587647]
[1754678126070,9.37493657,178.65,178.64,3.24587647]
[1754678126661,5.5964,178.66,178.64,3.24587647]
[1754678126662,9.37493657,178.66,178.64,3.24587647]
[1754678126972,9.37493657,178.68,178.66,3.21]
[1754678127173,9.37493657,178.68,178.67,9.62752673]
[1754678128876,12.00493657,178.68,178.66,0.04154014]
[1754678129077,12.45183383,178.72,178.66,0.04154014]
[1754678129078,12.00493657,178.67,178.66,0.04154014]
[1754678129481,2.63,178.67,178.66,0.04154014]
[1754678130178,12.45183383,178.71,178.66,3.25154014]
[1754678130379,2.63,178.68,178.66,3.25154014]
[1754678131078,8.226,178.67,178.66,0.04154014]
[1754678131981,2.63,178.64,178.62,3.21]
[1754678132175,12.00930179,178.63,178.6,3.21]
[1754678132377,12.00930179,178.63,178.61,3.21]
[1754678132676,2.63,178.62,178.58,3.21]
[1754678132872,12.00930179,178.61,178.58,3.21]
[1754678133289,2.63,178.6,178.56,3.21]
[1754678133479,2.63,178.58,178.56,3.21]
[1754678133682,5.5985,178.6,178.56,5.5994]
[1754678133982,2.63,178.58,178.55,3.21]
[1754678134185,2.63,178.58,178.53,6.41752673]
[1754678134385,2.63,178.58,178.56,3.21]
[1754678134778,0.03979864,178.57,178.54,5.6]
[1754678135082,0.03979864,178.57,178.54,3.21]
[1754678135380,0.03979864,178.57,178.56,8.8094]
[1754678136892,0.03979864,178.57,178.56,3.21]
[1754678137375,2.66979864,178.57,178.53,9.38752673]
[1754678137576,2.66979864,178.57,178.48,376.0]
[1754678137577,2.66979864,178.57,178.51,9.38752673]
[1754678137980,2.63,178.56,178.51,2.97]
[1754678138183,2.63,178.55,178.52,2.97]
[1754678138374,2.63,178.55,178.52,5.6004]
[1754678138574,8.2295,178.56,178.54,2.97]
[1754678139280,8.2298,178.55,178.53,2.97]
[1754678139981,2.63,178.55,178.53,2.97]
[1754678140378,2.66979864,178.57,178.51,6.41752673]
[1754678140681,0.03979864,178.57,178.54,2.97]
[1754678140881,12.00930179,178.59,178.54,2.97]
[1754678141086,0.03975207,178.56,178.54,2.97]
[1754678141386,0.03975207,178.56,178.55,14.98722673]
[1754678143483,17.60720179,178.61,178.58,5.5987]
[1754678143686,17.60720179,178.61,178.59,2.97]
[1754678143877,2.63,178.59,178.56,2.97]
[1754678144083,9.37930179,178.61,178.55,6.41752673]
[1754678144282,12.00930179,178.6,178.57,2.97]
[1754678144785,26.76394929,178.69,178.56,2.97]
[1754678144786,9.37930179,178.61,178.56,2.97]
[1754678145287,9.37930179,178.61,178.57,6.41752673]
[1754678145484,9.37930179,178.61,178.58,2.97]
[1754678145881,2.63,178.64,178.59,6.41752673]
[1754678145882,9.37930179,178.62,178.59,6.41752673]
[1754678146086,9.37930179,178.61,178.59,6.41752673]
[1754678146587,9.37930179,178.62,178.59,6.41752673]
[1754678146883,9.37930179,178.63,178.62,2.97]
[1754678147284,12.45183383,178.67,178.62,2.97]
[1754678147285,5.5969,178.64,178.62,2.97]
[1754678147484,5.5969,178.64,178.63,2.97]
[1754678148290,8.2269,178.64,178.62,0.03898688]
[1754678148489,5.5969,178.64,178.63,2.97]
[1754678148885,12.45183383,178.67,178.63,9.38752673]
[1754678149085,2.63,178.68,178.65,2.97]
[1754678149285,15.08183383,178.69,178.65,6.41752673]
[1754678149487,12.45183383,178.7,178.65,6.41752673]
[1754678149688,2.63,178.68,178.66,2.97]
[1754678149887,12.45183383,178.69,178.63,2.97]
[1754678150093,9.39181795,178.64,178.63,2.97]
[1754678150688,12.45183383,178.67,178.63,2.97]
[1754678150885,2.63,178.66,178.63,2.97]
[1754678151089,2.63,178.67,178.64,2.97]
[1754678151692,2.63,178.67,178.65,2.97]
[1754678151885,15.08183383,178.68,178.63,3.00527885]
[1754678152088,5.5969,178.64,178.63,3.00527885]
[1754678153183,5.5977,178.62,178.6,2.97]
[1754678153388,9.39362514,178.61,178.6,2.97]
[1754678154193,9.39362514,178.61,178.59,6.41752673]
[1754678154194,14.99122514,178.62,178.61,2.97]
[1754678154397,9.39343928,178.62,178.61,9.38752673]
[1754678154693,9.39343928,178.63,178.62,2.97]
[1754678154894,9.39343928,178.63,178.62,9.38752673]
[1754678157098,14.99063928,178.63,178.62,9.38752673]
[1754678158599,9.39343928,178.63,178.62,2.97]
[1754678158800,0.03694403,178.65,178.59,9.38752673]
[1754678158996,9.39547398,178.61,178.59,6.41752673]
[1754678159192,12.02547398,178.61,178.57,6.41752673]
[1754678159495,9.39547398,178.59,178.57,6.41752673]
[1754678159794,9.39547398,178.6,178.57,6.41752673]
[1754678159993,9.39547398,178.6,178.59,9.38752673]
[1754678160800,17.62367398,178.6,178.59,2.97]
[1754678160992,9.39697993,178.6,178.59,2.97]
[1754678161393,2.63,178.61,178.57,2.97]
[1754678162089,2.63,178.6,178.57,2.97]
[1754678162303,5.5992,178.57,178.56,2.97]
[1754678162603,2.63,178.56,178.54,2.97]
[1754678162897,2.63,178.55,178.54,2.97]
[1754678163196,2.63,178.55,178.53,6.41752673]
[1754678163389,5.6005,178.53,178.51,2.97]
[1754678163592,17.62935808,178.53,178.51,2.97]
[1754678163791,17.62935808,178.53,178.49,6.41752673]
[1754678163792,9.39885808,178.53,178.49,6.41752673]
[1754678163995,2.63,178.51,178.49,2.97]
[1754678164393,9.39885808,178.52,178.47,9.38752673]
[1754678164594,2.63,178.51,178.48,2.97]
[1754678164794,2.63,178.51,178.49,2.97]
[1754678165199,2.63,178.5,178.49,2.97]
[1754678165393,9.43832437,178.52,178.49,2.97]
[1754678165600,2.63,178.51,178.49,2.97]
[1754678165989,2.63,178.51,178.47,6.41752673]
[1754678166190,9.43832437,178.52,178.48,3.16]
[1754678166602,9.43832437,178.52,178.49,6.41752673]
[1754678166909,9.43832437,178.52,178.51,3.16]
[1754678167200,2.66946629,178.52,178.51,3.16]
[1754678167403,12.06832437,178.52,178.49,6.41752673]
[1754678167598,2.63,178.49,178.46,3.16]
[1754678167800,2.63,178.48,178.46,3.16]
[1754678168096,9.39885808,178.49,178.43,6.41752673]
[1754678168097,2.63,178.47,178.43,6.41752673]
[1754678168302,9.43915311,178.49,178.43,6.41752673]
[1754678168500,12.06915311,178.49,178.46,3.16]
[1754678168701,12.06915311,178.49,178.43,6.41752673]
[1754678168897,12.06915311,178.49,178.47,3.16]
[1754678169104,0.04029503,178.49,178.46,3.16]
[1754678169798,0.04029503,178.49,178.48,3.16]
[1754678172703,2.67029503,178.49,178.48,3.16]
[1754678172902,2.67029503,178.49,178.47,3.16]
[1754678173405,8.27189503,178.49,178.47,3.16]
[1754678173605,0.04029503,178.49,178.48,3.16]
[1754678174907,2.67029503,178.49,178.48,3.16]
[1754678175207,0.04029503,178.49,178.48,3.16]
[1754678175696,0.04029503,178.49,178.48,9.57752673]
[1754678176311,0.04029503,178.49,178.48,15.17952673]
[1754678177909,0.04029503,178.49,178.48,8.762]
[1754678178210,0.04029503,178.49,178.48,15.17952673]
[1754678181405,9.39885808,178.54,178.52,5.6005]
[1754678181609,9.39885808,178.56,178.54,3.16]
[1754678181809,9.39885808,178.59,178.56,3.16]
[1754678182009,9.39885808,178.59,178.57,3.16]
[1754678182211,5.5991,178.58,178.57,3.16]
[1754678182814,9.39885808,178.61,178.58,3.16]
[1754678183013,2.64,178.64,178.61,3.16]
[1754678183014,9.39885808,178.62,178.61,3.16]
[1754678183209,2.64,178.64,178.61,0.04384658]
[1754678183210,12.03885808,178.64,178.61,0.04384658]
[1754678183510,8.5775,178.63,178.62,3.95028199]
[1754678184210,2.98,178.63,178.62,3.95028199]
[1754678184415,9.39885808,178.65,178.62,3.95028199]
[1754678184616,9.39885808,178.65,178.63,6.43231289]
[1754678185109,9.39885808,178.66,178.64,3.16]
[1754678185310,17.97535808,178.66,178.64,3.16]
[1754678186415,2.98,178.65,178.61,9.63224103]
[1754678186714,2.98,178.63,178.62,3.16]
[1754678187112,2.98,178.64,178.61,0.03992814]
[1754678187413,2.98,178.63,178.61,0.03992814]
[1754678187816,8.5776,178.62,178.61,0.03992814]
[1754678189110,5.5985,178.6,178.55,9.59231289]
[1754678189317,2.98,178.59,178.57,3.16]
[1754678189714,8.5785,178.59,178.57,3.16]
[1754678189915,2.98,178.57,178.55,6.43231289]
[1754678190117,9.39885808,178.6,178.56,3.16]
[1754678190306,9.39885808,178.61,178.56,8.7592]
[1754678190512,0.03621371,178.58,178.55,6.43231289]
[1754678190714,0.03621371,178.58,178.56,3.16]
[1754678191012,3.01621371,178.58,178.57,3.16]
[1754678191617,2.98,178.57,178.56,3.16]
[1754678191912,12.37885808,178.57,178.5,151.09231289]
[1754678192112,12.37885808,178.56,178.51,3.16]
[1754678192307,2.98,178.55,178.51,3.16]
[1754678192617,12.37885808,178.55,178.51,3.16]
[1754678192806,9.39885808,178.55,178.51,3.16]
[1754678193007,2.98,178.53,178.48,3.16]
[1754678193410,8.581,178.51,178.49,3.16]
[1754678193612,2.98,178.51,178.49,3.16]
[1754678193819,2.98,178.51,178.5,3.16]
[1754678194820,0.04086453,178.52,178.5,3.16]
[1754678195021,2.98,178.51,178.5,3.16]
[1754678196817,0.04086453,178.52,178.51,3.17]
[1754678197019,3.11,178.51,178.47,6.43231289]
[1754678197222,3.11,178.51,178.49,3.17]
[1754678197418,3.11,178.51,178.47,6.43231289]
[1754678197419,3.11,178.51,178.45,3.17]
[1754678197727,3.11,178.49,178.45,3.17]
[1754678197922,3.11,178.49,178.44,6.43231289]
[1754678198123,9.39885808,178.51,178.46,6.43231289]
[1754678198318,9.39885808,178.51,178.44,6.43231289]
[1754678198319,3.11,178.5,178.44,6.43231289]
[1754678198525,9.39885808,178.5,178.47,3.17]
[1754678198725,3.11,178.48,178.47,3.17]
[1754678200926,0.04099914,178.49,178.47,3.17]
[1754678201128,3.15099914,178.49,178.48,3.17]
[1754678201419,8.75259914,178.49,178.48,3.17]
[1754678201623,3.11,178.47,178.44,9.60231289]
[1754678201821,3.11,178.48,178.45,3.17]
[1754678202024,3.11,178.48,178.42,8.7738]
[1754678202325,3.11,178.48,178.43,3.17]
[1754678202521,5.6023,178.47,178.44,3.17]
[1754678202723,3.11,178.48,178.45,3.17]
[1754678202921,3.11,178.48,178.39,144.56]
[1754678203127,12.50885808,178.46,178.41,3.17]
[1754678203425,3.11,178.45,178.41,3.17]
[1754678203626,3.11,178.43,178.41,3.17]
[1754678203919,0.03861361,178.45,178.4,6.43231289]
[1754678204120,0.03861361,178.45,178.43,5.6033]
[1754678204315,0.03861361,178.45,178.44,3.17]
[1754678204524,5.64151361,178.45,178.44,3.17]
[1754678204724,3.11,178.44,178.38,0.97532266]
[1754678205025,9.39885808,178.41,178.33,6.43231289]
[1754678205223,9.39885808,178.41,178.32,376.36]
[1754678205224,3.11,178.4,178.32,3.17]
[1754678205637,5.6067,178.33,178.32,3.17]
[1754678205926,9.48913763,178.33,178.32,3.17]
[1754678206123,3.11,178.32,178.3,3.17]
[1754678206323,3.88243763,178.31,178.3,3.17]
[1754678207232,3.88243763,178.31,178.3,8.7776]
[1754678207826,3.88243763,178.31,178.3,5.6076]
[1754678208121,3.88243763,178.31,178.3,8.7776]
[1754678209431,3.11,178.29,178.27,3.17]
[1754678209632,3.88243763,178.28,178.26,144.54]
[1754678209831,3.88243763,178.27,178.26,150.1489]
[1754678210232,0.03732033,178.29,178.27,3.17]
[1754678210427,3.86943768,178.28,178.27,8.7786]
[1754678210828,0.03732033,178.29,178.28,8.7782]
[1754678211028,0.03732033,178.29,178.28,15.21051289]
[1754678211532,0.03732033,178.29,178.28,8.7782]
[1754678211735,0.03732033,178.29,178.28,15.21051289]
[1754678212335,0.03732033,178.29,178.28,8.7782]
[1754678213235,3.14732033,178.29,178.28,8.7782]
[1754678213429,0.03732033,178.29,178.28,8.7782]
[1754678213829,3.14732033,178.29,178.28,5.6082]
[1754678214427,3.14732033,178.29,178.28,8.7782]
[1754678214836,0.03732033,178.29,178.28,8.7782]
[1754678215332,6.43231289,178.41,178.31,3.17]
[1754678215537,3.11,178.38,178.29,3.17]
[1754678215735,3.11,178.38,178.29,6.43231289]
[1754678215945,3.11,178.36,178.3,3.17]
[1754678216543,3.11,178.34,178.31,0.03719457]
[1754678217642,3.11,178.33,178.31,0.03719457]
[1754678217837,3.11,178.32,178.31,0.03719457]
[1754678219750,8.717,178.32,178.31,0.03719457]
[1754678220145,6.43231289,178.35,178.26,150.95231289]
[1754678220347,5.6075,178.31,178.27,8.7783]
[1754678220547,3.11,178.29,178.27,8.7783]
[1754678220949,3.11,178.29,178.26,3.96392226]
[1754678221149,3.11,178.29,178.24,3.17]
[1754678221543,3.96392226,178.3,178.24,3.17]
[1754678221749,3.11,178.25,178.18,3.96392226]
[1754678221952,3.11,178.23,178.18,8.7812]
[1754678222151,3.11,178.23,178.18,3.17]
[1754678222348,3.11,178.21,178.16,4.94033954]
[1754678222752,3.86811531,178.2,178.19,3.17]
[1754678223148,3.86811531,178.2,178.15,3.17]
[1754678223457,3.86811531,178.19,178.17,3.17]
[1754678223648,3.8654437,178.21,178.2,3.17]
[1754678224158,5.6111,178.19,178.16,3.17]
[1754678224452,3.86235705,178.18,178.15,6.46599646]
[1754678224652,3.86235705,178.19,178.18,8.7814]
[1754678224848,3.86235705,178.21,178.18,3.17]
[1754678225050,6.97235705,178.2,178.19,3.17]
[1754678225250,3.15177997,178.2,178.19,3.17]
[1754678225449,0.04177997,178.2,178.19,8.7811]
[1754678225649,3.15177997,178.2,178.19,3.17]
[1754678225954,7.01413702,178.2,178.19,5.6111]
[1754678226155,0.04177997,178.2,178.19,8.5711]
[1754678226662,0.04177997,178.2,178.19,2.96]
[1754678226847,3.16,178.19,178.15,2.96]
[1754678227153,3.86235705,178.18,178.15,2.96]
[1754678227350,7.02235705,178.19,178.13,7.44270148]
[1754678227546,3.16,178.17,178.1,2.96]
[1754678227753,3.86235705,178.16,178.1,2.96]
[1754678228456,0.0391888,178.15,178.13,2.96]
[1754678228653,0.0391888,178.15,178.14,9.42599646]
[1754678228852,3.86235705,178.2,178.14,105.98459292]
[1754678229047,6.46599646,178.28,178.17,6.46599646]
[1754678229048,7.02235705,178.21,178.17,6.46599646]
[1754678229249,3.16,178.19,178.13,0.03961555]
[1754678229548,3.16,178.17,178.1,6.46599646]
[1754678229750,3.86235705,178.16,178.1,6.46599646]
[1754678229951,3.86235705,178.15,178.08,0.97700665]
[1754678230150,3.16,178.15,178.11,6.50226571]
[1754678230560,3.16,178.18,178.11,6.50226571]
[1754678230757,7.02235705,178.17,178.13,6.46599646]
[1754678230960,3.86235705,178.21,178.15,2.96]
[1754678231156,3.16,178.19,178.15,6.46599646]
[1754678231361,3.86235705,178.18,178.16,0.03565075]
[1754678231554,3.16,178.16,178.09,2.96]
[1754678231758,7.02235705,178.15,178.09,9.42599646]
[1754678231962,7.02235705,178.14,178.11,2.96]
[1754678232163,7.02235705,178.13,178.11,2.96]
[1754678232462,3.16,178.12,178.09,9.42599646]
[1754678232864,0.03866524,178.13,178.09,6.46599646]
[1754678233157,0.03866524,178.13,178.06,0.97696551]
[1754678233158,3.85461118,178.12,178.06,0.97696551]
[1754678233361,3.16,178.1,178.07,2.96]
[1754678233562,6.46599646,178.12,177.87,6.46599646]
[1754678233759,3.16,178.09,178.0,2.96]
[1754678233962,3.85177203,178.08,178.0,2.96]
[1754678234160,3.16,178.05,178.01,5.6165]
[1754678234557,3.16,178.05,178.03,2.96]
[1754678235058,0.04041721,178.06,178.04,2.96]
[1754678235361,0.04041721,178.06,178.05,2.96]
[1754678235563,3.88925478,178.06,178.05,2.96]
[1754678235757,0.04041721,178.06,178.05,2.96]
[1754678236158,3.88925478,178.06,177.99,2.96]
[1754678236361,7.00883757,178.05,178.0,6.46599646]
[1754678236560,0.04041721,178.06,178.05,5.6155]
[1754678236759,0.04041721,178.06,178.05,8.5755]
[1754678236959,0.04041721,178.06,178.05,2.96]
[1754678237864,0.04041721,178.06,178.05,8.5755]
[1754678238066,0.04041721,178.06,178.04,6.46599646]
[1754678238260,3.84785457,178.05,177.94,9.42599646]
[1754678238467,3.16,178.02,177.94,2.96]
[1754678238663,3.16,178.0,177.94,9.42599646]
[1754678238861,3.16,178.0,177.97,8.5778]
[1754678239064,0.04244834,178.0,177.98,2.96]
[1754678239263,0.04244834,178.0,177.96,6.46599646]
[1754678239461,0.04244834,178.0,177.96,2.96]
[1754678239659,6.46599646,177.99,177.88,2.96]
[1754678239966,3.16,177.96,177.94,2.96]
[1754678240157,3.16,177.96,177.9,2.96]
[1754678240356,3.16,177.94,177.91,2.96]
[1754678240568,0.03611834,177.95,177.94,2.96]
[1754678240866,3.19611834,177.95,177.92,9.42599646]
[1754678241070,0.03611834,177.95,177.92,6.46599646]
[1754678241273,3.19611834,177.95,177.92,9.42599646]
[1754678241569,0.03611834,177.95,177.94,8.579]
[1754678241762,3.16,177.94,177.9,9.42599646]
[1754678241962,0.03611834,177.95,177.9,9.42599646]
[1754678241963,3.16,177.93,177.9,6.46599646]
[1754678242168,3.16,177.91,177.89,2.96]
[1754678242467,3.19611834,177.95,177.91,2.96]
[1754678242668,3.19611834,177.95,177.92,2.96]
[1754678242861,3.16,177.96,177.89,6.46599646]
[1754678243066,3.16,177.94,177.87,6.46599646]
[1754678243260,3.16,177.93,177.9,2.96]
[1754678243761,3.16,177.95,177.92,2.96]
[1754678243960,3.84132209,178.0,177.92,2.96]
[1754678244169,6.46599646,177.95,177.86,0.97824254]
[1754678244367,3.16,177.94,177.86,0.97824254]
[1754678244568,3.16,177.94,177.86,6.59954254]